Cogmind - Beta 11.1 @@@ ROGUE MODE // 2022.05.10 @ 21:19:05 Player: Haldron Result: Destroyed by L-31 Rogue with Katana Performance ------------- Evolutions (2) 1000 Regions Visited (9) 1800 Robots Destroyed (117) 585 Value Destroyed (3972) 3972 Prototype IDs (5) 100 Alien Tech Used (0) 0 Bonus (1501) 1501 TOTAL SCORE: 8958 Bonus ------- High Alert Combat Kills 411 Follower Combat Kills 136 Entered Garrisons 200 Used RIF Installer 500 Aligned with FarCom 300 Friendly Fire -46 Cogmind --------- Core Integrity 0/550 Matter 217/300 Energy 40/100 System Corruption 0% Temperature Cool (0) Movement Core (350) Ox6 Location -8/Materials Parts ------- > --- POWER (1) -------- (None) > --- PROPULSION (2) --- (None) > --- UTILITY (6) ------ Improved Heat Sink Large Storage Unit Visual Processing Unit Improved Targeting Computer > --- WEAPON (2) ------- (None) > --- INVENTORY (15) --- Light Deuterium Engine Light Deuterium Engine Hardened Medium Armor Plating Hacking Suite System Shield Relay Coupler [NC] (21) Relay Coupler [NC] (27) Relay Coupler [Sentry] (23) Improved Datajack Katana Peak State ------------ > --- POWER ------------ Heavy Ion Engine > --- PROPULSION ------- Armored Treads Armored Treads > --- UTILITY ---------- Improved Heat Sink Large Storage Unit High-capacity Matter Pod Visual Processing Unit Improved Targeting Computer Hardened Medium Armor Plating > --- WEAPON ----------- EM Pulse Cannon Assault Cannon > --- INVENTORY -------- Light Deuterium Engine Armored Treads Compact Wheel Compact Wheel Compact Wheel Structural Scanner Hardened Medium Armor Plating Trap Extractor Advanced Beam Cannon Heavy Particle Cannon Heavy Particle Cannon Heavy Particle Cannon Rocket Launcher Improved Datajack Great Maul [Rating: 30] Favorites ----------- Power Heavy Ion Engine Engine Heavy Ion Engine Power Core Light Nuclear Core Propulsion Compact Wheel Treads Armored Treads Wheel Compact Wheel Flight Unit Flight Unit Utility Large Storage Unit Device Improved Heat Sink Storage Large Storage Unit Processor Improved Targeting Computer Hackware Relay Coupler [NC] Protection Hardened Medium Armor Plating Weapon Heavy Particle Cannon Energy Gun Beam Rifle Energy Cannon Heavy Particle Cannon Ballistic Gun Assault Rifle Ballistic Cannon Improved Light Cannon Launcher Rocket Launcher Impact Weapon Great Maul Slashing Weapon Katana Special Melee Weapon Improved Datajack Build | -11 -10 -10 -9 -9 -9 -8 -8 -8 -8 ------- Run | Scr Mat Min Mat Min Exi Min Mat Gar Mat Slots Evolved 4 | . . . 2 . . . 2 . . Power . | . . . . . . . . . . Propulsion . | . . . . . . . . . . Utility 4 | . . . 2 . . . 2 . . Weapon . | . . . . . . . . . . Parts Attached 112 | 7 1 10 12 10 2 11 19 27 13 Power 8 | 1 . 2 1 . . 2 1 1 . Engine 5 | 1 . 2 1 . . . 1 . . Core 3 | . . . . . . 2 . 1 . Reactor . | . . . . . . . . . . Propulsion 22 | 2 . 2 5 5 . 2 3 3 . Treads 13 | 1 . 1 4 2 . 2 2 1 . Leg . | . . . . . . . . . . Wheel 7 | 1 . 1 . 3 . . 1 1 . Hover . | . . . . . . . . . . Flight 2 | . . . 1 . . . . 1 . Utility 34 | 2 1 1 4 3 1 3 8 9 2 Device 14 | 1 . . 2 2 1 2 3 3 . Storage 5 | 1 1 . 1 . . . 1 . 1 Processor 4 | . . 1 . 1 . . 2 . . Hackware 5 | . . . . . . . . 4 1 Protection 6 | . . . 1 . . 1 2 2 . Artifact . | . . . . . . . . . . Weapon 48 | 2 . 5 2 2 1 4 7 14 11 Energy Gun 2 | 1 . . . . . 1 . . . Energy Cannon 17 | . . . 1 . . . 4 7 5 Ballistic Gun 5 | 1 . . 1 . . . . 1 2 Ballistic Cannon 9 | . . 3 . 2 . 3 1 . . Launcher 4 | . . 2 . . . . . 1 1 Special Weapon . | . . . . . . . . . . Impact Weapon 1 | . . . . . . . 1 . . Slashing Weapon 6 | . . . . . 1 . . 3 2 Piercing Weapon . | . . . . . . . . . . Special Melee Weapon 4 | . . . . . . . 1 2 1 Unidentified Prototypes 2 | . . . 1 . 1 . . . . Parts Lost 29 | . . 5 1 7 . 3 1 4 8 Power 5 | . . 1 . . . 1 1 1 1 Propulsion 10 | . . 2 . 4 . 1 . 1 2 Utility 7 | . . . 1 2 . . . 2 2 Weapon 7 | . . 2 . 1 . 1 . . 3 Highest Loss Streak 8 | . . 5 1 2 . 2 1 1 8 To Critical Strikes . | . . . . . . . . . . Average Slot Usage (%) 97 | . 100 96 97 85 81 99 99 99 98 Engine 7 | . 14 12 11 11 11 6 6 7 . Core 1 | . . . . . . 4 1 . 8 Treads 9 | . 14 14 11 11 11 10 10 8 . Wheel 9 | . 14 12 11 8 11 11 7 9 8 Device 14 | . 14 5 11 12 13 17 15 15 9 Storage 10 | . 14 14 11 11 11 11 12 9 9 Processor 14 | . . 8 11 9 11 11 16 18 18 Hackware 1 | . . . . . . . . 2 9 Protection 6 | . . . 8 . . 4 8 9 8 Energy Gun 1 | . 14 . . . . 8 . . . Energy Cannon 8 | . . . 4 7 . . 9 15 9 Ballistic Cannon 6 | . . 24 13 14 3 13 8 . . Special Melee Weapon 1 | . . . . . . . . 1 7 Naked Turns . | . . . . . . . . . . Heaviest Build 52 | 13 28 36 40 39 37 37 52 52 46 Greatest Support 40 | 20 16 20 16 23 16 23 40 16 16 Greatest Overweight (x) 11 | . 1 2 2 2 2 2 3 3 11 Average Overweight (x) 2 | . . 1 2 1 1 1 2 2 1 Largest Inventory Capacity 15 | 8 15 15 15 15 15 15 15 15 15 Average Capacity 14 | 7 12 15 15 15 15 15 15 15 15 Most Carried 15 | 6 13 15 15 15 15 15 15 15 15 Average Carried 14 | 2 9 14 14 14 14 14 14 14 12 Final Capacity 15 | 8 15 15 15 15 15 15 15 15 15 Final Carried 15 | 5 13 14 15 15 15 14 15 15 10 Class Distribution -------------------- 68% | Mutant 8% | Bothacker-Mutant 8% | Scavenger-Mutant 7% | Skirmisher 5% | Scavenger-Skirmisher Dominant Class ---------------- Mutant | -10/Materials Mutant | -10/Mines Mutant | -9/Materials Mutant | -9/Mines Mutant | -9/Exiles Skirmisher | -8/Mines Mutant | -8/Materials Mutant | -8/Garrison Bothacker-Mutant | -8/Materials Resources | -11 -10 -10 -9 -9 -9 -8 -8 -8 -8 ----------- Run | Scr Mat Min Mat Min Exi Min Mat Gar Mat Matter Collected 2418 | 282 98 198 400 417 44 389 196 323 71 Remotely . | . . . . . . . . . . Salvage Created 3347 | 95 134 182 437 506 . 385 546 769 293 Parts 192 | 7 7 8 36 28 . 17 33 37 19 Haulers Intercepted 2 | . . . 2 . . . . . . Recyclers Shooed 2 | . 1 . . . . 1 . . . Parts Field Recycled . | . . . . . . . . . . Retrieved Matter . | . . . . . . . . . . Parts Self-Destructed . | . . . . . . . . . . Prevented . | . . . . . . . . . . Kills | -11 -10 -10 -9 -9 -9 -8 -8 -8 -8 ------- Run | Scr Mat Min Mat Min Exi Min Mat Gar Mat Combat Hostiles Destroyed 98 | . 5 10 11 27 . 10 7 21 7 Guns 12 | . 5 . 4 . . 2 . 1 . Cannons 68 | . . 1 7 27 . 8 7 18 . AOE 18 | . . 9 . . . . . 2 7 Classes Destroyed 17 | 2 2 1 2 3 . 2 3 1 1 Worker 3 | . . . . . . 1 2 . . Builder 3 | . . . . . . . 1 . 2 Tunneler 1 | 1 . . . . . . . . . Hauler 2 | . . . 2 . . . . . . Recycler 7 | 1 . 1 1 1 . 1 1 . 1 Mechanic 2 | . . . . . . . 1 . 1 Operator 2 | . . . . . . . 2 . . Watcher 7 | . . . 3 . . . 4 . . Swarmer 35 | . 3 6 7 12 . 3 . 4 . Cutter 3 | . . . . . . . . 3 . Grunt 36 | . 2 2 2 4 . 5 3 13 5 Brawler 1 | . . . . 1 . . . . . Duelist 5 | . . . . 2 . 1 . 1 1 Protector 1 | . . . . . . . . . 1 Sentry 6 | . . 2 2 . . . 2 . . Hunter 3 | . . . . . . 1 2 . . Assembled 8 | . . . . 8 . . . . . Best Kill Streak 8 | 2 3 7 4 5 . 3 4 4 8 Combat Bots Only 7 | . 3 7 4 5 . 3 3 4 7 Max Kills in Single Turn 5 | 1 1 2 1 2 . 1 2 1 5 Gunslinging . | . . . . . . . . . . Exploded 4 | . . 2 . . . . . 1 4 Melee . | . . . . . . . . . . Uniques/NPCs Destroyed . | . . . . . . . . . . Combat | -11 -10 -10 -9 -9 -9 -8 -8 -8 -8 -------- Run | Scr Mat Min Mat Min Exi Min Mat Gar Mat Damage Taken 5305 | . 240 432 340 920 . 642 588 1212 931 Core 1042 | . 29 85 54 218 . 90 73 124 369 Absorbed by Shields 61 | . . . . . . . . 61 . Redirected to Shielding 23 | . . . . . . 12 11 . . Core Remaining (%) 54 | 100 . 54 . . . 9 . . . Volleys Fired 285 | 4 19 16 30 57 . 37 39 70 13 Largest 2 | 2 2 2 2 2 . 2 2 2 2 Hottest 150 | 70 70 78 88 107 . 95 150 150 150 Shots Fired 505 | 8 38 21 60 106 . 74 73 108 17 Gun 101 | 8 38 1 13 1 . 26 . 6 8 Cannon 387 | . . 10 47 105 . 48 73 97 7 Launcher 17 | . . 10 . . . . . 5 2 Special . | . . . . . . . . . . Kinetic 234 | 4 19 11 47 57 . 48 34 6 8 Thermal 254 | 4 19 . 13 49 . 26 39 97 7 Explosive 17 | . . 10 . . . . . 5 2 Electromagnetic . | . . . . . . . . . . Robot Hit Streak 16 | 3 8 4 10 9 . 13 13 16 14 Robot Miss Streak 7 | 2 2 3 3 4 . 3 2 7 3 Penetration Max 1 | . . . . . . . . . 1 Secondary Targets 2 | . 2 . . . . . . . . Max Gunslinging Chain 1 | . 1 . . . . . . . . Shots Hit Robots 303 | 4 25 9 31 59 . 53 45 64 13 Core Hits 178 | 3 9 14 17 29 . 22 26 37 21 Critical Kills . | . . . . . . . . . . Critical Parts Destroyed . | . . . . . . . . . . Critical Strikes 5 | . . 1 . 1 . 3 . . . Burn 1 | . . . . . . 1 . . . Blast 4 | . . 1 . 1 . 2 . . . Melee Attacks 39 | . . . . . . . 5 20 14 Impact 3 | . . . . . . . 3 . . Slashing 24 | . . . . . . . . 13 11 Piercing . | . . . . . . . . . . Sneak Attacks 6 | . . . . . . . 2 1 3 Combat Hostiles 1 | . . . . . . . . 1 . Follow-up Attacks . | . . . . . . . . . . Damage Inflicted 8504 | 53 315 840 621 1408 . 960 1156 1647 1504 Guns 999 | 53 315 12 84 11 . 293 . 95 136 Cannons 5343 | . . 115 537 1351 . 667 1156 1417 100 Explosions 2040 | . . 713 . 46 . . . 135 1146 Melee 122 | . . . . . . . . . 122 Ramming . | . . . . . . . . . . Kinetic 3015 | 28 153 127 517 745 . 667 547 95 136 Thermal 3373 | 25 162 . 104 663 . 293 609 1417 100 Explosive 1994 | . . 713 . . . . . 135 1146 Electromagnetic . | . . . . . . . . . . Impact . | . . . . . . . . . . Slashing 122 | . . . . . . . . . 122 Piercing . | . . . . . . . . . . Highest Corruption 6 | . . . . 6 6 6 . . . Average Corruption 6 | . . . . 6 6 6 . . . Corruption Purged . | . . . . . . . . . . Corruption Blocked . | . . . . . . . . . . Effects 80 | . . . . 29 10 41 . . . Message Errors 18 | . . . . 8 2 8 . . . Matter Fused 27 | . . . . 6 3 18 . . . Heat Flow Errors 7 | . . . . 6 . 1 . . . Energy Discharges 9 | . . . . 1 4 4 . . . Parts Rejected 1 | . . . . 1 . . . . . Data Loss (minor) 11 | . . . . 5 1 5 . . . Data Loss (major) 4 | . . . . 1 . 3 . . . Alerts 3 | . . . . 1 . 2 . . . Overload Shots . | . . . . . . . . . . Overflow Damage 229 | . . 26 1 7 . . 28 5 162 Projectiles 41 | . . . 1 7 . . 28 5 . Explosions 155 | . . 26 . . . . . . 129 Melee 33 | . . . . . . . . . 33 Knockbacks 33 | . . 1 1 11 . 5 15 . . Impact . | . . . . . . . . . . Kinetic 27 | . . 1 1 7 . 5 13 . . Secondary 6 | . . . . 4 . . 2 . . Self-Inflicted Damage 300 | . . . . . . . . 146 154 Shots 6 | . . . . . . . . 3 3 Rammed . | . . . . . . . . . . Targets Rammed . | . . . . . . . . . . Kicked . | . . . . . . . . . . Crushed . | . . . . . . . . . . Highest Temperature 358 | 18 156 75 105 271 . 303 108 358 102 Average Temperature 71 | 10 52 34 38 81 . 125 40 61 42 Received Heat Transfer 1809 | . 84 168 45 108 . 288 315 558 243 Effects 5 | . . . . . . 3 . 2 . Energy Bleed 1 | . . . . . . 1 . . . Interference 4 | . . . . . . 2 . 2 . Siege Activations . | . . . . . . . . . . Robots Corrupted . | . . . . . . . . . . Combat Hostiles . | . . . . . . . . . . Parts Fried . | . . . . . . . . . . Impact Corruptions . | . . . . . . . . . . Robots Melted . | . . . . . . . . . . Combat Hostiles . | . . . . . . . . . . Parts Melted 10 | . 2 . . 1 . . 5 2 . Heat Transferred 5711 | 74 481 . 185 1160 . 814 814 2035 148 Parts Sabotaged . | . . . . . . . . . . Parts Stolen . | . . . . . . . . . . Parts Stripped . | . . . . . . . . . . Power Chain Reactions . | . . . . . . . . . . Missiles Intercepted . | . . . . . . . . . . Alert | -11 -10 -10 -9 -9 -9 -8 -8 -8 -8 ------- Run | Scr Mat Min Mat Min Exi Min Mat Gar Mat Peak Influence 1419 | 10 91 383 355 335 . 75 233 1419 739 Initial 681 | . 6 21 70 128 . . 29 143 681 Average 439 | 2 62 243 238 245 . 34 71 917 612 Maximum Alert Level 4 | . . 1 1 1 . . 1 4 3 Low Security (%) 41 | 100 100 65 36 13 . 100 86 3 . Level 1 19 | . . 34 63 86 . . 13 6 1 Level 2 11 | . . . . . . . . 21 55 Level 3 12 | . . . . . . . . 26 43 Level 4 14 | . . . . . . . . 42 . Level 5 . | . . . . . . . . . . High Security . | . . . . . . . . . . Max Security . | . . . . . . . . . . Squads Dispatched 3 | . . . . . . . 1 . 2 Investigation . | . . . . . . . . . . Extermination . | . . . . . . . . . . Reinforcement 1 | . . . . . . . 1 . . Assault 2 | . . . . . . . . . 2 Garrison . | . . . . . . . . . . Intercept . | . . . . . . . . . . Searches Triggered . | . . . . . . . . . . Construction Impeded . | . . . . . . . . . . Haulers Reinforced . | . . . . . . . . . . Active Scanning Responses . | . . . . . . . . . . Cargo Convoy Interrupts . | . . . . . . . . . . Stealth | -11 -10 -10 -9 -9 -9 -8 -8 -8 -8 --------- Run | Scr Mat Min Mat Min Exi Min Mat Gar Mat Distress Signals 5 | . . . 2 . . . 3 . . Communications Jammed . | . . . . . . . . . . Distress Signals . | . . . . . . . . . . Times Spotted 136 | . 5 10 16 31 . 10 22 27 15 Peak Tracking Total 10 | . 3 7 4 4 . 3 4 5 10 Tactical Retreats 2 | . . . . 1 . . 1 . . Traps | -11 -10 -10 -9 -9 -9 -8 -8 -8 -8 ------- Run | Scr Mat Min Mat Min Exi Min Mat Gar Mat Traps Triggered 4 | . . . . . . . . 4 . Indirectly . | . . . . . . . . . . Trap Hack Attempts . | . . . . . . . . . . Triggered . | . . . . . . . . . . Disarmed . | . . . . . . . . . . Reprogrammed . | . . . . . . . . . . Reused . | . . . . . . . . . . Traps Extracted . | . . . . . . . . . . Installed . | . . . . . . . . . . Triggered . | . . . . . . . . . . Machines | -11 -10 -10 -9 -9 -9 -8 -8 -8 -8 ---------- Run | Scr Mat Min Mat Min Exi Min Mat Gar Mat Machines Disabled 19 | . . 1 3 6 . 1 1 6 1 Max in Single Turn 2 | . . 1 1 1 . 1 1 2 1 Garrison Relay 3 | . . . . . . . . 3 . Phase Generator 1 | . . . . . . . . 1 . Machines Sabotaged . | . . . . . . . . . . Garrisons Compromised . | . . . . . . . . . . Overloaded Fab Kills . | . . . . . . . . . . Hacking | -11 -10 -10 -9 -9 -9 -8 -8 -8 -8 --------- Run | Scr Mat Min Mat Min Exi Min Mat Gar Mat Machines Accessed 14 | . 3 . 2 . . . 6 . 3 Terminals 10 | . 3 . 2 . . . 3 . 2 Fabricators . | . . . . . . . . . . Repair Stations 1 | . . . . . . . 1 . . Recycling Units . | . . . . . . . . . . Scanalyzers 1 | . . . . . . . 1 . . Garrison Access 2 | . . . . . . . 1 . 1 Total Hacks 47 | . 11 . 7 . . . 18 . 11 Successful 27 | . 5 . 4 . . . 12 . 6 Failed 20 | . 6 . 3 . . . 6 . 5 Catastrophic 1 | . . . . . . . 1 . . Database Lockouts . | . . . . . . . . . . Manual 27 | . 6 . 4 . 1 . 6 . 10 Terminals 33 | . 11 . 7 . . . 7 . 8 Fabricators . | . . . . . . . . . . Repair Stations 2 | . . . . . . . 2 . . Recycling Units . | . . . . . . . . . . Scanalyzers 8 | . . . . . . . 8 . . Garrison Access 4 | . . . . . . . 1 . 3 Terminal Hacks 8 | . 4 . 2 . . . . . 2 Prototype ID Bank 2 | . 1 . 1 . . . . . . Branch Access Points 1 | . . . . . . . . . 1 Terminal Index 1 | . . . . . . . . . 1 Unreport Threat 1 | . 1 . . . . . . . . Zone Layout 3 | . 2 . 1 . . . . . . Fabricator Hacks . | . . . . . . . . . . Repair Station Hacks 1 | . . . . . . . 1 . . Scan Component 1 | . . . . . . . 1 . . Recycling Unit Hacks . | . . . . . . . . . . Scanalyzer 8 | . . . . . . . 8 . . Insert Component 4 | . . . . . . . 4 . . Analyze 4 | . . . . . . . 4 . . Garrison Access Hacks 2 | . . . . . . . 1 . 1 Unlock Access 2 | . . . . . . . 1 . 1 Unauthorized Hacks 8 | . 1 . 2 . . . 2 . 3 Terminals 7 | . 1 . 2 . . . 2 . 2 Assimilate 3 | . . . 1 . . . 1 . 1 Operators 4 | . 1 . 1 . . . 1 . 1 Fabricators . | . . . . . . . . . . Repair Stations . | . . . . . . . . . . Recycling Units . | . . . . . . . . . . Scanalyzers . | . . . . . . . . . . Garrison Access 1 | . . . . . . . . . 1 Watchers 1 | . . . . . . . . . 1 Data Cores Recovered . | . . . . . . . . . . Used . | . . . . . . . . . . Hacking Detections 10 | . 2 . 2 . . . 4 . 2 Full Trace Events . | . . . . . . . . . . Feedback Events . | . . . . . . . . . . Feedback Blocked . | . . . . . . . . . . Robot Schematics Acquired . | . . . . . . . . . . Robots Built . | . . . . . . . . . . Authchips . | . . . . . . . . . . Time . | . . . . . . . . . . Total Robot Build Rating . | . . . . . . . . . . Part Schematics Acquired 4 | . . . . . . . 4 . . Parts Built . | . . . . . . . . . . Authchips . | . . . . . . . . . . Time . | . . . . . . . . . . Total Part Build Rating . | . . . . . . . . . . Parts Repaired . | . . . . . . . . . . Time . | . . . . . . . . . . Parts Recycled . | . . . . . . . . . . Recycled Matter . | . . . . . . . . . . Retrieved Matter . | . . . . . . . . . . Retrieved Components . | . . . . . . . . . . Parts Scanalyzed 4 | . . . . . . . 4 . . Part Schematics Acquired 4 | . . . . . . . 4 . . Parts Damaged . | . . . . . . . . . . Bothacking | -11 -10 -10 -9 -9 -9 -8 -8 -8 -8 ------------ Run | Scr Mat Min Mat Min Exi Min Mat Gar Mat Used RIF Installer 1 | . . . . . . . . 1 . Robots Hacked 8 | . . . . . . . 1 4 3 Non-combat 3 | . . . . . . . 1 . 2 Combat 5 | . . . . . . . . 4 1 Robot Hacks Applied 10 | . . . . . . . 2 5 3 no_distress 1 | . . . . . . . 1 . . check_alert 1 | . . . . . . . 1 . . overwrite_iff 1 | . . . . . . . . 1 . streamctrl_high 1 | . . . . . . . . 1 . formatsys_low 2 | . . . . . . . . . 2 formatsys_high 4 | . . . . . . . . 3 1 Relay Couplers Released 14 | . . . . . . . . 14 . Machine Destruction 14 | . . . . . . . . 14 . Attached 5 | . . . . . . . . 4 1 Fabnet Peak Effective % . | . . . . . . . . . . Robots Rewired . | . . . . . . . . . . Allies Hacked . | . . . . . . . . . . Hacks Repelled . | . . . . . . . . . . Allies | -11 -10 -10 -9 -9 -9 -8 -8 -8 -8 -------- Run | Scr Mat Min Mat Min Exi Min Mat Gar Mat Total Allies 11 | . . . . 3 . . . 4 4 Largest Group 5 | . . . . 3 1 . . 2 5 Highest-Rated Group 84 | . . . . 84 22 . . 32 78 Highest-Rated Ally 31 | . . . . 31 22 . . 16 26 Total Orders 20 | . . . . . . . . . 20 STAY 15 | . . . . . . . . . 15 FOLLOW 2 | . . . . . . . . . 2 DROP 1 | . . . . . . . . . 1 PICKUP 2 | . . . . . . . . . 2 Ally Attacks 31 | . . . . 5 . . . 17 9 Total Damage 890 | . . . . 490 . . . 224 176 Kills 6 | . . . . 3 . . . 2 1 Allies Corrupted . | . . . . . . . . . . Allies Melted . | . . . . . . . . . . Intel | -11 -10 -10 -9 -9 -9 -8 -8 -8 -8 ------- Run | Scr Mat Min Mat Min Exi Min Mat Gar Mat Robot Analysis Total . | . . . . . . . . . . Derelict Logs Recovered 3 | . . 2 . 1 . . . . . Drone Launches . | . . . . . . . . . . Drone Recoveries . | . . . . . . . . . . Exploration | -11 -10 -10 -9 -9 -9 -8 -8 -8 -8 ------------- Run | Scr Mat Min Mat Min Exi Min Mat Gar Mat Turns Passed 12114 | 87 325 727 538 1318 413 1473 2271 4065 897 Spaces Moved 6234 | 56 226 509 295 733 351 630 1127 1744 563 Core 4 | 3 . . . . . . . . 1 Treads 518 | 6 . 24 . 134 . 187 167 . . Legs . | . . . . . . . . . . Wheels 5712 | 47 226 485 295 599 351 443 960 1744 562 Hover . | . . . . . . . . . . Flight . | . . . . . . . . . . Fastest Speed 50 | 50 100 115 130 130 115 130 130 130 115 Average Speed 140 | 103 110 131 130 150 116 162 152 139 130 Slowest Speed 600 | 160 115 240 130 240 130 240 250 145 600 Overloaded Moves . | . . . . . . . . . . Propulsion Burnouts . | . . . . . . . . . . Robots Hopped . | . . . . . . . . . . Cave-ins Triggered . | . . . . . . . . . . Time Travels 1 | . . . . . 1 . . . . Exploration Rate (%) 58 | 4 30 96 26 99 77 76 54 97 23 Regions Visited 9 Branch Regions 4 Pre-discovered Areas 2 | . . 2 . . . . . . . Known Exits Taken 1 | . . . . . . . 1 . . Unknown Exits Taken 7 | 1 1 1 1 1 1 1 . . . Scrap Searched 5 | . . 2 . 1 . 2 . . . Spaces Dug 14 | . . . . . . . 3 3 8 Terrain Destroyed 294 | . . 76 2 9 . 1 16 130 60 Melee 14 | . . . . . . . 3 3 8 Projectile 24 | . . 2 2 3 . 1 13 1 2 AOE 256 | . . 74 . 6 . . . 126 50 Terrain Rammed . | . . . . . . . . . . Walls Destroyed . | . . . . . . . . . . Machines Disabled . | . . . . . . . . . . Actions | -11 -10 -10 -9 -9 -9 -8 -8 -8 -8 --------- Run | Scr Mat Min Mat Min Exi Min Mat Gar Mat Total 9037 | 74 265 545 395 845 355 1005 1610 3251 692 Wait 2200 | . 9 . 38 35 . 319 382 1337 80 Move 6224 | 55 225 508 294 732 350 629 1126 1742 563 Hop . | . . . . . . . . . . Pick Up 78 | 7 9 7 10 8 1 3 20 12 1 Fast Attach 20 | 6 . 1 . 3 . 3 2 5 . Attach 30 | 1 . 5 2 6 2 4 4 4 2 Detach 7 | . . 1 . . 1 2 1 2 . Swap 62 | . 1 4 10 1 . 4 13 18 11 Drop 59 | 1 2 3 11 3 1 4 18 11 5 Fire 285 | 4 19 16 30 57 . 37 39 70 13 Melee 39 | . . . . . . . 5 20 14 Ram . | . . . . . . . . . . Kick . | . . . . . . . . . . Crush . | . . . . . . . . . . Escape Stasis 27 | . . . . . . . . 27 . Rewire 6 | . . . . . . . . 3 3 Trap . | . . . . . . . . . . Miscellaneous . | . . . . . . . . . . Route ------- -11/Scrapyard -10/Materials -10/Mines (discovered 2 exits: *Mat x2) -9/Materials (discovered 2 exits: *Mat / [*Min]) -9/Mines (discovered 3 exits: *Mat x2 / *Exi) -9/Exiles (discovered 2 exits: [*Min x2]) -8/Mines -8/Materials (discovered 3 exits: *Fac x2 / Gar) -8/Garrison (discovered 3 exits: *Mat x3) -8/Materials (discovered 1 exit: Gar) History --------- Turn | Location | Event 34 | -11/Scrapyard | Discovered new exit (range 16) 88 | -11/Scrapyard | Entered Materials 297 | -10/Materials | Discovered new exit (range 16) 311 | -10/Materials | Build established: Mutant 413 | -10/Materials | Entered Mines 620 | -10/Mines | Destroyed 7 combat bots 621 | -10/Mines | Lost 5 parts (1p2n2w) 776 | -10/Mines | Found a hidden stash of uninstalled traps 954 | -10/Mines | Learned location of Storage (-9) 997 | -10/Mines | Discovered new exit (range 13) 1017 | -10/Mines | Discovered new exit (range 7) 1047 | -10/Mines | Learned Materials trap positions 1140 | -10/Mines | Entered Materials 1140 | -9/Materials | Evolved 2 slots: Utility x2 1141 | -9/Materials | Loaded intel: 15 trap records 1346 | -9/Materials | Discovered new exit (range 16) 1670 | -9/Materials | Discovered new exit (range 7) 1678 | -9/Materials | Entered Mines 1679 | -9/Mines | Assembled infested the area 2148 | -9/Mines | Learned Materials stockpile data 2149 | -9/Mines | Received a Mining Laser from a helpful Derelict 2161 | -9/Mines | Discovered new exit (range 13) 2162 | -9/Mines | Core integrity fell below 50% 2236 | -9/Mines | Discovered new exit (range 2) 2980 | -9/Mines | Deemed a non-threat by the Exiles lab entrance 2980 | -9/Mines | Discovered new exit (range 5) 2996 | -9/Mines | Entered Exiles 2996 | -9/Exiles | Accompanied by 1 ally 3019 | -9/Exiles | Discovered new exit (range 14) 3050 | -9/Exiles | Met 8R-AWN 3070 | -9/Exiles | Met EX-HEX 3101 | -9/Exiles | Met EX-BIN 3117 | -9/Exiles | Aligned with FarCom system 3118 | -9/Exiles | Given EX-Vault access code 3145 | -9/Exiles | Opened EX-Vault 3152 | -9/Exiles | Found Prototype Device 3153 | -9/Exiles | Identified Chronowheel 3153 | -9/Exiles | Activated Chronowheel 3153 | -9/Exiles | Spacetime reconverged on an earlier point 3179 | -9/Exiles | Warned to stay clear of 0b10 Research branches 3214 | -9/Exiles | Met EX-DEC 3282 | -9/Exiles | Visited The Gauntlet 3395 | -9/Exiles | Discovered new exit (range 14) 3409 | -9/Exiles | Entered Mines 3700 | -8/Mines | Build established: Skirmisher 4592 | -8/Mines | Build established: Scavenger-Skirmisher 4792 | -8/Mines | Core integrity fell below 20% 4863 | -8/Mines | Discovered new exit (range 9) 4882 | -8/Mines | Entered Materials 4882 | -8/Materials | Evolved 2 slots: Utility x2 5128 | -8/Materials | Discovered new exit (range 16) 5144 | -8/Materials | Build established: Scavenger-Mutant 5151 | -8/Materials | Identified exit to Factory 5590 | -8/Materials | Build established: Mutant 6115 | -8/Materials | Build established: Scavenger-Mutant 6681 | -8/Materials | Discovered exit to Factory (range 16) 6739 | -8/Materials | Build established: Mutant 6773 | -8/Materials | Identified exit to Garrison 7153 | -8/Materials | Entered Garrison 7548 | -8/Garrison | Triggered checkpoint 7548 | -8/Garrison | Triggered checkpoint 7696 | -8/Garrison | Discovered new exit (range 10) 7985 | -8/Garrison | Discovered new exit (range 17) 8040 | -8/Garrison | Triggered checkpoint 8084 | -8/Garrison | Garrison Relay disabled 8416 | -8/Garrison | Triggered checkpoint 8463 | -8/Garrison | Garrison Relay disabled 9336 | -8/Garrison | Triggered checkpoint 9815 | -8/Garrison | Discovered new exit (range 17) 9848 | -8/Garrison | Installed Relay Interface Framework 10573 | -8/Garrison | Phase Generator disabled 10626 | -8/Garrison | Triggered checkpoint 10666 | -8/Garrison | Garrison Relay disabled 10742 | -8/Garrison | Triggered checkpoint 11218 | -8/Garrison | Entered Materials 11218 | -8/Materials | Accompanied by 1 ally 11278 | -8/Materials | Build established: Bothacker-Mutant 11344 | -8/Materials | Identified exit to Garrison 12018 | -8/Materials | First assault squad dispatched 12092 | -8/Materials | Core integrity fell below 50% 12103 | -8/Materials | Core integrity fell below 20% 12115 | -8/Materials | Destroyed by L-31 Rogue with Katana Last Messages --------------- 12102_ G-47 Trooper destroyed. 12104_ Slug penetrates G-47 Trooper. 12106_ Nuclear Reactor explodes. 12106_ Destroyed Aluminum Leg. 12106_ G-47 Trooper destroyed. 12106_ G-50 Soldier destroyed. 12106_ Destroyed Lgt. Deuterium Engine. 12106_ M-28 Smith destroyed. 12106_ Destroyed Imp. Aluminum Leg. 12106_ L-31 Rogue destroyed. 12106_ U-05 Engineer lays Concrete. 12107_ Acquired 17 matter. 12107_ Hvy. Particle Cannon destroyed. 12108_ The unstable cave ceiling collapses. 12108_ U-05 Engineer lays Concrete. 12110_ Hvy. Particle Cannon severed. 12110_ U-05 Engineer lays Concrete. 12111_ The unstable cave ceiling collapses. 12112_ Relay Coupler [NC] destroyed. 12115_ Gauss Rifle destroyed. Map ----- +----------------------------------------------------+ | ???????????????????????????????????????# """ #? | | ???????????????????????????????????????# """ #? | | ???????????????????????????????????##### """ #? | | ???????????????????????????????????# # ! """ #? | | ???????????????????????????????????# # """ #? | | ???????????????????????????????????# # #? | | ???????????????????????????????????# + "T" #? | | ???????????????????????????????????# # """ #? | | ???????????????????????????????????# ##########? | | ???????????????????????????????????# # #? | | ???????????????????????????????????# # ] #? | | ???????????????????????????????????# # **#? | | ???????????????????????????????????# # #? | | ???????????????????????????????????# + ## | | ???????????????????????????????????# # ## | | ???????????????????????????????????# # ## | | ???????????????????########????????# # + | | ?????????????????### # ##???????# # ## | | ?????????????????# #???????# ########### | | ????????????????## ######### #?????????# | | ????????????????# # * ## ! # ########### | | ????????????????## ! #] # | | ????????????##### ! [%=# """ # | | ????????????# %*%!!= # """ # | | ????????????#"" # !=*=%%[l # """ # ########## | | ????????????#"" # * @ # # #????????? | | ????????????#"T #=|% u####+#### #????????? | | ????????????#"" + = #????????? | | ????????????#"" # ##### #### #????????? | | ????????????# #####???# #??# #????????? | | ????????????#! #???????# #??# """"" #????????? | | ????????????# #???????# #??# """"" #????????? | | ????????????######???????#+#??# """"" #????????? | | ?????????????????????????? ??# +????????? | | ??????????????????????????? ??# #????????? | | ???????????????????????????"??# """"" #????????? | | ???????????????????????????"??# """"" #????????? | | ???????????????????????????"??? "???" #????????? | | ??????????????????????????????? ???? w#????????? | | ??????????????????????????????? ???? #????????? | | ??????????????????????????????? "???? #????????? | | ??????????????????????????????? "???? ?????????? | | ??????????????????????????????? ????? ?????????? | | ?????????????????????????????????????????????????? | | ?????????????????????????????????????????????????? | | ?????????????????????????????????????????????????? | | ?????????????????????????????????????????????????? | | ?????????????????????????????????????????????????? | | ?????????????????????????????????????????????????? | | ?????????????????????????????????????????????????? | +----------------------------------------------------+ Best States ------------- Heat Dissipation 59 Energy Generation 14 Energy Capacity 280 Matter Stores 433 Matter Capacity 500 Sight Range 18 Robot Scan Range 14 Terrain Scan Range 16 Terrain Scan Density 10 Armor Coverage 225 Core Shielding 20 Evasion (%) 40 Targeting Accuracy 6 Recoil Reduction 2 Particle Charging 15 Relay Coupler Types 2 Relay Coupler Value 29 Item Schematics ----------------- Structural Scanner | -8/Materials | Scanalyzed Trap Extractor | -8/Materials | Scanalyzed Hrd. Medium Armor Plating | -8/Materials | Scanalyzed Imp. Datajack | -8/Materials | Scanalyzed Robot Schematics ------------------ None Fabricated ------------ Nothing Alien Tech Used ----------------- None Achievements -------------- Let's See Who's Tougher Challenges ------------ None Game ------ Seed TeslaConcussiveLance Manual? 0 Play Time 01:47:18 Cumulative 37.1 hours Start 2022.05.10 @ 17:54:00 End 2022.05.10 @ 21:19:05 Sessions 3 Manual Loads 0 Difficulty Rogue Special Mode None Game No. 13 Rogue 12 Adventurer 0 Explorer 1 Win Type - Total 0 Types 0/0/0/0/0/0/0/0/0 Lore% 16 Gallery% 29 Achievement% 32 Wizard Run 0 Options --------- ASCII 0 Keyboard 0 Movement Numpad Keybinds 0 Fullscreen 1 Font 18/SmallcapsGlow Map View 76x50 Tactical HUD 1 Map Filters NONE Filters NONE Steam 1 RUN: af14b4ba-f87e-4766-9df9-74b6e11e8a63